Cogmind - Beta 13 @@@ ROGUE MODE // 2024.03.31 @ 22:37:10 Player: Helta Result: Destroyed by G-47 Trooper with Particle Gun Performance ------------- Evolutions (2) 1000 Regions Visited (3) 600 Robots Destroyed (24) 120 Value Destroyed (733) 733 Prototype IDs (5) 100 Alien Tech Used (0) 0 Bonus (0) 0 TOTAL SCORE: 2553 Bonus ------- None Cogmind --------- Core Integrity 0/550 Matter 272/300 Energy 100/100 System Corruption 0% Temperature Cool (18) Movement Core (50) Location -8/Materials Parts ------- > --- POWER (2) -------- (None) > --- PROPULSION (2) --- (None) > --- UTILITY (4) ------ Signal Interpreter > --- WEAPON (3) ------- (None) > --- INVENTORY (5) ---- Visual Processing Unit ECM Suite Shock Rifle Peak State ------------ > --- POWER ------------ Improved Ion Engine Improved Ion Engine > --- PROPULSION ------- Advanced Treads Advanced Treads > --- UTILITY ---------- Heat Sink Medium Storage Unit Signal Interpreter Hardened Light Armor Plating > --- WEAPON ----------- Shock Rifle Beam Cannon Beam Cannon > --- INVENTORY -------- Advanced Treads Advanced Treads Visual Processing Unit ECM Suite Hardened Light Armor Plating Shock Rifle Medium Laser [Rating: 21] Favorites ----------- Power Ion Engine Engine Ion Engine Propulsion Advanced Treads Treads Advanced Treads Wheel Compact Wheel Utility Signal Interpreter Device Heat Sink Storage Medium Storage Unit Processor Signal Interpreter Protection Hardened Light Armor Plating Weapon Shock Rifle Energy Gun Shock Rifle Energy Cannon Beam Cannon Ballistic Gun Assault Rifle Build | -11 -10 -9 -8 ------- Run | Yrd Mat Mat Mat Slots Evolved 4 | . . 2 2 Power 1 | . . . 1 Propulsion . | . . . . Utility 2 | . . 1 1 Weapon 1 | . . 1 . Parts Attached 43 | 6 10 13 14 Power 5 | 1 1 2 1 Engine 5 | 1 1 2 1 Core . | . . . . Reactor . | . . . . Propulsion 11 | 2 2 2 5 Treads 8 | 2 . 2 4 Leg . | . . . . Wheel 3 | . 2 . 1 Hover . | . . . . Flight . | . . . . Utility 9 | 1 3 2 3 Device 1 | . . 1 . Storage 3 | 1 2 . . Processor 2 | . 1 1 . Hackware . | . . . . Protection 3 | . . . 3 Artifact . | . . . . Weapon 18 | 2 4 7 5 Energy Gun 11 | . 1 6 4 Energy Cannon 4 | . 2 1 1 Ballistic Gun 3 | 2 1 . . Ballistic Cannon . | . . . . Launcher . | . . . . Special Weapon . | . . . . Impact Weapon . | . . . . Slashing Weapon . | . . . . Piercing Weapon . | . . . . Special Melee Weapon . | . . . . Unidentified Prototypes . | . . . . Parts Lost 20 | . 4 1 15 Power 3 | . 1 . 2 Propulsion 5 | . 1 . 4 Utility 4 | . . . 4 Weapon 8 | . 2 1 5 Highest Loss Streak 12 | . 3 1 12 To Critical Strikes . | . . . . Average Slot Usage (%) 92 | . 96 98 48 Engine 11 | . 13 11 6 Treads 19 | . 20 20 6 Wheel 2 | . 7 . 1 Device 6 | . . 11 3 Storage 11 | . 14 11 3 Processor 11 | . 13 11 9 Energy Gun 15 | . 2 24 9 Energy Cannon 8 | . 9 7 5 Ballistic Gun 4 | . 13 . . Naked Turns . | . . . . Heaviest Build 39 | 14 21 27 39 Greatest Support 44 | 40 40 44 44 Greatest Overweight (x) 11 | . . 7 11 Average Overweight (x) . | . . . . Largest Inventory Capacity 10 | 8 10 10 10 Average Capacity 9 | 7 8 10 7 Most Carried 10 | . 10 10 9 Average Carried 7 | . 3 9 4 Final Capacity 10 | 8 10 10 5 Final Carried 10 | . 10 10 3 Class Distribution -------------------- 50% | Gunner 47% | Mutant Dominant Class ---------------- Mutant | -10/Materials Gunner | -9/Materials Mutant | -8/Materials Resources | -11 -10 -9 -8 ----------- Run | Yrd Mat Mat Mat Matter Collected 642 | 202 285 155 . Remotely . | . . . . Salvage Created 941 | . 410 531 . Parts 59 | . 20 39 . Haulers Intercepted . | . . . . Recyclers Shooed 1 | . . 1 . Parts Field Recycled . | . . . . Retrieved Matter . | . . . . Parts Self-Destructed . | . . . . Prevented . | . . . . Kills | -11 -10 -9 -8 ------- Run | Yrd Mat Mat Mat Combat Hostiles Destroyed 17 | . 8 9 . Guns 12 | . 6 6 . Cannons 4 | . 2 2 . AOE 1 | . . 1 . Classes Destroyed 6 | . 3 3 . Worker 1 | . . 1 . Builder 2 | . . 2 . Mechanic 1 | . 1 . . Watcher 3 | . 1 2 . Grunt 13 | . 8 5 . Sentry 4 | . . 4 . Best Kill Streak 4 | . 2 4 . Combat Bots Only 2 | . 2 2 . Max Kills in Single Turn 3 | . 1 3 . Gunslinging . | . . . . Exploded 1 | . . 1 . Melee . | . . . . Uniques/NPCs Destroyed . | . . . . Combat | -11 -10 -9 -8 -------- Run | Yrd Mat Mat Mat Hostile Shots Fired 262 | . 65 41 156 Missed 58 | . 17 8 33 Damage Taken 3009 | . 633 414 1962 Core 674 | . 77 41 556 Absorbed by Shields . | . . . . Regen/Repaired (Parts) 29 | . . 29 . Core Remaining (%) 86 | 100 69 89 . Volleys Fired 85 | . 49 24 12 Largest 3 | . 2 3 2 Hottest 160 | . 120 160 120 Shots Fired 162 | . 80 66 16 Gun 119 | . 64 50 5 Cannon 43 | . 16 16 11 Launcher . | . . . . Special . | . . . . Kinetic 49 | . 49 . . Thermal 58 | . 31 16 11 Explosive . | . . . . Electromagnetic 55 | . . 50 5 Robot Hit Streak 11 | . 11 7 4 Robot Miss Streak 4 | . 3 4 1 Penetration Max . | . . . . Secondary Targets 2 | . 1 1 . Max Gunslinging Chain 1 | . 1 1 . Shots Hit Robots 96 | . 54 33 9 Core Hits 43 | . 19 19 5 Critical Kills . | . . . . Critical Parts Destroyed . | . . . . Critical Strikes . | . . . . Melee Attacks . | . . . . Impact . | . . . . Slashing . | . . . . Piercing . | . . . . Sneak Attacks . | . . . . Combat Hostiles . | . . . . Follow-up Attacks . | . . . . Damage Inflicted 1695 | . 691 798 206 Guns 1059 | . 549 430 80 Cannons 373 | . 142 143 88 Explosions 225 | . . 225 . Melee . | . . . . Ramming 38 | . . . 38 Kinetic 419 | . 419 . . Thermal 728 | . 272 368 88 Explosive . | . . . . Electromagnetic 510 | . . 430 80 Impact . | . . . . Slashing . | . . . . Piercing . | . . . . Highest Corruption 4 | . 2 4 . Average Corruption 3 | . 2 3 . Corruption Purged . | . . . . Corruption Blocked . | . . . . Effects 17 | . 1 16 . Message Errors 1 | . . 1 . Matter Fused 7 | . . 7 . Heat Flow Errors 2 | . 1 1 . Energy Discharges 2 | . . 2 . Data Loss (minor) 1 | . . 1 . Data Loss (major) 3 | . . 3 . Weapon Failures 1 | . . 1 . Overload Shots . | . . . . Overflow Damage 2 | . . 2 . Projectiles . | . . . . Explosions 2 | . . 2 . Melee . | . . . . Knockbacks . | . . . . Impact . | . . . . Kinetic . | . . . . Secondary . | . . . . Self-Inflicted Damage 16 | . . . 16 Shots . | . . . . Rammed 16 | . . . 16 Targets Rammed 16 | . . . 16 Kicked . | . . . . Crushed . | . . . . Highest Temperature 584 | . 418 225 584 Average Temperature 122 | . 88 76 261 Received Heat Transfer 1824 | . 369 204 1251 Effects 10 | . 2 . 8 Shutdowns 2 | . 1 . 1 Energy Bleed 2 | . 1 . 1 Short Circuit 1 | . . . 1 Damage (major) 5 | . . . 5 Siege Activations . | . . . . Robots Corrupted . | . . . . Combat Hostiles . | . . . . Parts Fried 1 | . . 1 . Impact Corruptions . | . . . . Robots Melted . | . . . . Combat Hostiles . | . . . . Parts Melted 3 | . 1 2 . Heat Transferred 1327 | . 596 546 185 Parts Sabotaged . | . . . . Parts Stolen . | . . . . Parts Stripped . | . . . . Power Chain Reactions 2 | . . 2 . Alert | -11 -10 -9 -8 ------- Run | Yrd Mat Mat Mat Peak Influence 237 | . 170 237 75 Initial 32 | . . 32 12 Average 70 | . 76 82 19 Maximum Alert Level 1 | . . 1 . Low Security (%) 91 | 100 100 84 100 Level 1 8 | . . 15 . Level 2 . | . . . . Level 3 . | . . . . Level 4 . | . . . . Level 5 . | . . . . High Security . | . . . . Max Security . | . . . . Squads Dispatched 9 | . 2 4 3 Investigation 3 | . . 2 1 Extermination . | . . . . Reinforcement 6 | . 2 2 2 Assault . | . . . . Garrison . | . . . . Intercept . | . . . . Searches Triggered . | . . . . Construction Impeded . | . . . . Haulers Reinforced . | . . . . Active Scanning Responses . | . . . . Cargo Convoy Interrupts . | . . . . Stealth | -11 -10 -9 -8 --------- Run | Yrd Mat Mat Mat Distress Signals 3 | . . 1 2 Communications Jammed . | . . . . Distress Signals . | . . . . Times Spotted 40 | . 13 12 15 Peak Tracking Total 9 | . 3 4 9 Tactical Retreats 4 | . 1 2 1 Traps | -11 -10 -9 -8 ------- Run | Yrd Mat Mat Mat Traps Triggered 7 | . 2 2 3 Indirectly . | . . . . Trap Hack Attempts . | . . . . Triggered . | . . . . Disarmed . | . . . . Reprogrammed . | . . . . Reused . | . . . . Traps Extracted . | . . . . Installed . | . . . . Triggered . | . . . . Machines | -11 -10 -9 -8 ---------- Run | Yrd Mat Mat Mat Machines Disabled . | . . . . Max in Single Turn . | . . . . Machines Repaired . | . . . . Machines Dismantled . | . . . . Machines Sabotaged . | . . . . Overloaded Fab Kills . | . . . . Hacking | -11 -10 -9 -8 --------- Run | Yrd Mat Mat Mat Machines Accessed 10 | . 1 8 1 Terminals 7 | . 1 6 . Fabricators . | . . . . Repair Stations 2 | . . 1 1 Recycling Units . | . . . . Scanalyzers 1 | . . 1 . Garrison Access . | . . . . Total Hacks 30 | . 1 24 5 Successful 17 | . . 16 1 Failed 13 | . 1 8 4 Catastrophic 1 | . 1 . . Database Lockouts . | . . . . Manual . | . . . . Terminals 16 | . 1 15 . Fabricators . | . . . . Repair Stations 12 | . . 7 5 Recycling Units . | . . . . Scanalyzers 2 | . . 2 . Garrison Access . | . . . . Terminal Hacks 10 | . . 10 . Record 4 | . . 4 . Prototype ID Bank 2 | . . 2 . Emergency Access Points 1 | . . 1 . Alert Level 1 | . . 1 . Unreport Threat 1 | . . 1 . Zone Layout 1 | . . 1 . Fabricator Hacks . | . . . . Repair Station Hacks 5 | . . 4 1 Scan Component 4 | . . 3 1 Repair 1 | . . 1 . Recycling Unit Hacks . | . . . . Scanalyzer 2 | . . 2 . Insert Component 1 | . . 1 . Analyze 1 | . . 1 . Garrison Access Hacks . | . . . . Unauthorized Hacks . | . . . . Terminals . | . . . . Fabricators . | . . . . Repair Stations . | . . . . Recycling Units . | . . . . Scanalyzers . | . . . . Garrison Access . | . . . . Data Cores Recovered . | . . . . Used . | . . . . Hacking Detections 7 | . 1 5 1 Full Trace Events 3 | . . 2 1 Feedback Events . | . . . . Feedback Blocked . | . . . . Robot Schematics Acquired . | . . . . Robots Built . | . . . . Authchips . | . . . . Time . | . . . . Total Robot Build Rating . | . . . . Part Schematics Acquired 1 | . . 1 . Parts Built . | . . . . Authchips . | . . . . Time . | . . . . Total Part Build Rating . | . . . . Parts Repaired 1 | . . 1 . Time 53 | . . 53 . Parts Recycled . | . . . . Recycled Matter . | . . . . Retrieved Matter . | . . . . Retrieved Components . | . . . . Parts Scanalyzed 1 | . . 1 . Part Schematics Acquired 1 | . . 1 . Parts Damaged . | . . . . Bothacking | -11 -10 -9 -8 ------------ Run | Yrd Mat Mat Mat Used RIF Installer . | . . . . Robots Hacked . | . . . . Non-combat . | . . . . Combat . | . . . . Robot Hacks Applied . | . . . . Relay Couplers Released . | . . . . Fabnet Peak Effective % . | . . . . Robots Rewired . | . . . . Allies Hacked . | . . . . Hacks Repelled . | . . . . Allies | -11 -10 -9 -8 -------- Run | Yrd Mat Mat Mat Total Allies . | . . . . Largest Group . | . . . . Highest-Rated Group . | . . . . Highest-Rated Ally . | . . . . Total Orders . | . . . . Ally Attacks . | . . . . Total Damage . | . . . . Kills . | . . . . Allies Corrupted . | . . . . Allies Melted . | . . . . Intel | -11 -10 -9 -8 ------- Run | Yrd Mat Mat Mat Robot Analysis Total . | . . . . Derelict Logs Recovered . | . . . . Drone Launches . | . . . . Drone Recoveries . | . . . . Exploration | -11 -10 -9 -8 ------------- Run | Yrd Mat Mat Mat Turns Passed 1911 | 67 583 1049 212 Spaces Moved 1063 | 39 319 591 114 Core 49 | 3 . 1 45 Treads 813 | 36 181 549 47 Legs . | . . . . Wheels 201 | . 138 41 22 Hover . | . . . . Flight . | . . . . Fastest Speed 50 | 50 100 100 50 Average Speed 139 | 151 134 142 131 Slowest Speed 600 | 160 160 400 600 Overloaded Moves . | . . . . Propulsion Burnouts . | . . . . Robots Hopped . | . . . . Cave-ins Triggered . | . . . . Exploration Rate (%) 27 | 4 39 51 17 Regions Visited 3 Branch Regions . Pre-discovered Areas . | . . . . Known Exits Taken 2 | . 1 1 . Unknown Exits Taken 1 | 1 . . . Scrap Searched . | . . . . Spaces Dug . | . . . . Terrain Destroyed 5 | . . 5 . Melee . | . . . . Projectile . | . . . . AOE 5 | . . 5 . Terrain Rammed . | . . . . Walls Destroyed . | . . . . Machines Disabled . | . . . . Actions | -11 -10 -9 -8 --------- Run | Yrd Mat Mat Mat Total 1341 | 44 391 750 156 Wait 92 | . . 92 . Move 1060 | 38 318 590 114 Hop . | . . . . Pick Up 22 | . 10 12 . Fast Attach 28 | 6 9 6 7 Attach 11 | . . 4 7 Detach 5 | . 1 4 . Swap 4 | . 1 3 . Drop 18 | . 3 15 . Fire 85 | . 49 24 12 Melee . | . . . . Ram 16 | . . . 16 Kick . | . . . . Crush . | . . . . Escape Stasis . | . . . . Rewire . | . . . . Trap . | . . . . Miscellaneous . | . . . . Route ------- -11/Scrapyard -10/Materials -9/Materials (discovered 2 exits: *Mat x2) -8/Materials (discovered 1 exit: [*Fac]) History --------- Turn | Location | Event 9 | -11/Scrapyard | Discovered new exit (range 15) 68 | -11/Scrapyard | Entered Materials 300 | -10/Materials | Build established: Mutant 422 | -10/Materials | Lost 3 parts (1p2w) 545 | -10/Materials | Discovered new exit (range 15) 559 | -10/Materials | Identified exit to Materials 651 | -10/Materials | Entered another Materials area 651 | -9/Materials | Evolved 2 slots: Utility x1, Weapon x1 808 | -9/Materials | Discovered new exit (range 10) 836 | -9/Materials | Identified exit to Materials 961 | -9/Materials | Build established: Gunner 1124 | -9/Materials | Repaired Broken Shock Rifle 1496 | -9/Materials | Discovered exit to Materials (range 10) 1700 | -9/Materials | Entered another Materials area 1700 | -8/Materials | Evolved 2 slots: Power x1, Utility x1 1838 | -8/Materials | Core integrity fell below 50% 1872 | -8/Materials | Lost 12 parts (2p4n4u2w) 1895 | -8/Materials | Discovered new exit (range 14) 1907 | -8/Materials | Core integrity fell below 20% 1912 | -8/Materials | Destroyed by G-47 Trooper with Particle Gun Last Messages --------------- 01880_ O-16 Technician locks terminal. 01883_ K-01 Serf collects debris. 01884_ Critical hit (Burn: +37). 01886_ K-01 Serf collects debris. 01888_ W-25 Informer sends out distress signal. 01889_ K-01 Serf collects debris. 01895_ EXIT=FOUND 01901_ Shock Rifle destroyed. 01901_ Slammed into G-47 Trooper. 01902_ Shock Rifle destroyed. 01902_ Slammed into G-47 Trooper. 01904_ Critical hit (Burn: +37). 01904_ Slammed into G-47 Trooper. 01904_ Shock Rifle broken. 01904_ Destabilizing: Short circuit. 01905_ Slammed into G-47 Trooper. 01906_ Signal Interpreter broken. 01906_ Destabilizing: Short circuit. 01906_ Broken Shock Rifle destroyed. 01907_ Slammed into G-47 Trooper. Map ----- +----------------------------------------------------+ | ??????????????????????????????????? | | ??????????????????????????????????? | | ??????????????????????????????????? | | ??????????????????????????????????? | | ??????????????????????????????????? | | ??????????????????????????????????? | | ??????????????????????????????????? | | ??????????????????????????????????? | | ??????????????????????????????????? | | ??????????????????????????????????? | | ??????????????????????????????????? | | ??????????????????????????????????? | | ??????????????????????????????????? | | ??????????????????????????????????? | | ??????????????????????????????????? | | ??????????????????????????????????? | | ??????????????????????????????????? | | ??????????????????????????????????? | | ??????????????????????????????????? | | ??????????????????????????????????? | | ??????????????????????????????????? | | ??????????????#####???????????????? | | ??????????????# ########??????? | | ??????????????# #??????? | | ??????????????+ g #??????? | | ??????????????# @ #??????? | | ??????????????# ##### ##?####?? | | ????????????????????????# #? ?? | | ????????????????????????# # """ #? | | ??????????#+############# # """ #? | | ??????????# ggg """ !#? | | ??????????# g # """ #? | | ????????### #?? #? | | ????????# # g #????###? | | ????????? /] #+########? | | ??????????# """ /] # #? | | ????####### """ / # #? | | ????# """ # #? | | ????# # #? | | ????# "T" / #? | | ????# """ # #? | | ##### #### ## #? | | ##### ##### #??# ## #? | | #????????#?????# #??# ## #? | | #??????????????# #??#+###########? | | ####+#####+###?# #???????????????? | | + ###"###?????????????? | | #### # #?????????????? | | ^#??# """ """ # [[[ #?????????????? | | #??# """ """ # #?????????????? | +----------------------------------------------------+ Best States ------------- Heat Dissipation 41 Energy Generation 19 Energy Capacity 430 Matter Stores 300 Matter Capacity 300 Sight Range 16 Terrain Scan Density 10 Armor Coverage 150 Evasion (%) 50 Recoil Reduction 2 Item Schematics ----------------- Shock Rifle | -9/Materials | Scanalyzed Robot Schematics ------------------ None Fabricated ------------ Nothing Alien Tech Used ----------------- None Achievements -------------- Crack Shot Challenges ------------ None Game ------ Seed LaserCompactLaser Manual? 0 Play Time 00:24:31 Cumulative 3.8 hours Start 2024.03.31 @ 22:15:50 End 2024.03.31 @ 22:37:10 Sessions 1 Manual Loads 0 Difficulty Rogue Special Mode None Game No. 6 Rogue 6 Adventurer 0 Explorer 0 Win Type - Total 0 Types 0/0/0/0/0/0/0/0/0 Lore% 10 Gallery% 10 Achievement% 11 Wizard Run 0 Options --------- Layout 1 ASCII 0 Keyboard 0 Movement Mouse Keybinds 0 Fullscreen 1 Font 32/SmallcapsGlow Map View 130x35 Zoom Use 0% Tactical HUD 1 Map Filters NONE Filters NONE Steam 1 RUN: d51a1d20-518e-406d-8d3d-789b555a7161